[Event "Titled Tuesday Blitz April 18 Early 2023"]
[White "Mendez Fortes, Eduardo Jesus"]
[Black "Gonzalez, Francisco Silva"]
[WhiteFideId "3502376"]
[BlackFideId "1512285"]
[WhiteElo "2307"]
[BlackElo "2074"]
[Result "1-0"]
[Round "03"]
[TimeControl "180+2"]
[Date "2023.04.18"]
[WhiteClock "0:00:05"]
[BlackClock "0:00:17"]

1. e4 {[%clk 0:03:00]}  e5 {[%clk 0:02:56]} 2. Nf3 {[%clk 0:03:01]}  Nc6 {[%clk 0:02:55]} 3. Bb5 {[%clk 0:03:01]}  a6 {[%clk 0:02:54]} 4. Ba4 {[%clk 0:03:02]}  Nf6 {[%clk 0:02:50]} 5. O-O {[%clk 0:03:02]}  b5 {[%clk 0:02:50]} 6. Bb3 {[%clk 0:03:02]}  Bc5 {[%clk 0:02:49]} 7. a4 {[%clk 0:03:02]}  Bb7 {[%clk 0:02:46]} 8. d3 {[%clk 0:03:00]}  d6 {[%clk 0:02:45]} 9. Nc3 {[%clk 0:03:00]}  Na5 {[%clk 0:02:40]} 10. axb5 {[%clk 0:02:55]}  Nxb3 {[%clk 0:02:40]} 11. cxb3 {[%clk 0:02:54]}  axb5 {[%clk 0:02:37]} 12. Rxa8 {[%clk 0:02:55]}  Bxa8 {[%clk 0:02:35]} 13. Nxb5 {[%clk 0:02:54]}  O-O {[%clk 0:02:36]} 14. Nc3 {[%clk 0:02:35]}  h6 {[%clk 0:02:34]} 15. h3 {[%clk 0:02:33]}  Re8 {[%clk 0:02:32]} 16. Be3 {[%clk 0:02:28]}  Bxe3 {[%clk 0:02:28]} 17. fxe3 {[%clk 0:02:29]}  d5 {[%clk 0:02:29]} 18. exd5 {[%clk 0:02:23]}  Nxd5 {[%clk 0:02:26]} 19. Nxd5 {[%clk 0:02:23]}  Bxd5 {[%clk 0:02:25]} 20. e4 {[%clk 0:02:24]}  Be6 {[%clk 0:02:19]} 21. Qc2 {[%clk 0:02:24]}  f6 {[%clk 0:02:15]} 22. Nd2 {[%clk 0:02:22]}  Qd4+ {[%clk 0:02:13]} 23. Kh1 {[%clk 0:02:20]}  Rd8 {[%clk 0:02:10]} 24. Rf3 {[%clk 0:02:19]}  Ra8 {[%clk 0:02:06]} 25. Qc1 {[%clk 0:01:28]}  c5 {[%clk 0:02:01]} 26. Nc4 {[%clk 0:01:27]}  Rb8 {[%clk 0:01:59]} 27. Qc2 {[%clk 0:01:24]}  Ra8 {[%clk 0:01:59]} 28. Rf1 {[%clk 0:01:22]}  Rd8 {[%clk 0:01:57]} 29. Rd1 {[%clk 0:01:16]}  Kh7 {[%clk 0:01:56]} 30. Qc3 {[%clk 0:01:14]}  Qf2 {[%clk 0:01:54]} 31. Qd2 {[%clk 0:00:43]}  Qd4 {[%clk 0:01:50]} 32. Qc3 {[%clk 0:00:30]}  Qf2 {[%clk 0:01:48]} 33. Rd2 {[%clk 0:00:29]}  Qf1+ {[%clk 0:01:46]} 34. Kh2 {[%clk 0:00:29]}  Qf4+ {[%clk 0:01:45]} 35. Kg1 {[%clk 0:00:20]}  Ra8 {[%clk 0:01:37]} 36. Qc1 {[%clk 0:00:15]}  Bxc4 {[%clk 0:01:34]} 37. bxc4 {[%clk 0:00:14]}  Qe3+ {[%clk 0:01:34]} 38. Kh1 {[%clk 0:00:12]}  Ra1 {[%clk 0:01:06]} 39. Qxa1 {[%clk 0:00:12]}  Qxd2 {[%clk 0:01:06]} 40. Qf1 {[%clk 0:00:12]}  Qxb2 {[%clk 0:01:04]} 41. Qf5+ {[%clk 0:00:12]}  Kh8 {[%clk 0:01:00]} 42. Qc8+ {[%clk 0:00:12]}  Kh7 {[%clk 0:01:01]} 43. Qxc5 {[%clk 0:00:11]}  Qc1+ {[%clk 0:01:01]} 44. Qg1 {[%clk 0:00:11]}  Qc2 {[%clk 0:01:01]} 45. Qf1 {[%clk 0:00:11]}  h5 {[%clk 0:00:59]} 46. Kg1 {[%clk 0:00:11]}  Qd2 {[%clk 0:00:58]} 47. Qf5+ {[%clk 0:00:11]}  Kh6 {[%clk 0:00:57]} 48. Qf3 {[%clk 0:00:11]}  Qe1+ {[%clk 0:00:55]} 49. Kh2 {[%clk 0:00:11]}  Qd2 {[%clk 0:00:54]} 50. Qg3 {[%clk 0:00:09]}  g6 {[%clk 0:00:51]} 51. Qf3 {[%clk 0:00:09]}  Kg5 {[%clk 0:00:46]} 52. c5 {[%clk 0:00:09]}  Qc1 {[%clk 0:00:44]} 53. h4+ {[%clk 0:00:09]}  Kh6 {[%clk 0:00:40]} 54. Qf2 {[%clk 0:00:06]}  Kg7 {[%clk 0:00:35]} 55. g3 {[%clk 0:00:04]}  Kf8 {[%clk 0:00:31]} 56. d4 {[%clk 0:00:03]}  Ke7 {[%clk 0:00:30]} 57. d5 {[%clk 0:00:03]}  Kf7 {[%clk 0:00:23]} 58. c6 {[%clk 0:00:04]}  Ke7 {[%clk 0:00:21]} 59. Qa7+ {[%clk 0:00:04]}  Kf8 {[%clk 0:00:20]} 60. Qb8+ {[%clk 0:00:04]}  Kf7 {[%clk 0:00:20]} 61. Qa7+ {[%clk 0:00:04]}  Ke8 {[%clk 0:00:19]} 62. Qf2 {[%clk 0:00:05]}  Ke7 {[%clk 0:00:18]} 63. Kg2 {[%clk 0:00:05]}  Qc5 {[%clk 0:00:17]} 64. Qxc5+ {[%clk 0:00:05]} 1-0


[Site "https://www.chess.com"]

[Event "Titled Tuesday Blitz April 18 Early 2023"]
[White "Melikhov, Evgeny V."]
[Black "Karthik Rajaa"]
[WhiteFideId "4122046"]
[BlackFideId "25035215"]
[WhiteElo "2158"]
[BlackElo "2215"]
[Result "0-1"]
[Round "03"]
[TimeControl "180+2"]
[Date "2023.04.18"]
[WhiteClock "0:00:01"]
[BlackClock "0:00:51"]

1. d4 {[%clk 0:03:00]}  Nf6 {[%clk 0:02:58]} 2. c4 {[%clk 0:03:00]}  g6 {[%clk 0:02:59]} 3. Nc3 {[%clk 0:03:01]}  Bg7 {[%clk 0:03:00]} 4. e4 {[%clk 0:03:01]}  d6 {[%clk 0:03:00]} 5. f3 {[%clk 0:03:02]}  O-O {[%clk 0:03:01]} 6. Be3 {[%clk 0:03:02]}  c5 {[%clk 0:03:01]} 7. Nge2 {[%clk 0:03:01]}  Nc6 {[%clk 0:03:01]} 8. d5 {[%clk 0:03:01]}  Ne5 {[%clk 0:03:00]} 9. Ng3 {[%clk 0:03:02]}  e6 {[%clk 0:02:56]} 10. Be2 {[%clk 0:03:01]}  h5 {[%clk 0:02:54]} 11. O-O {[%clk 0:02:51]}  h4 {[%clk 0:02:54]} 12. Nh1 {[%clk 0:02:51]}  exd5 {[%clk 0:02:54]} 13. cxd5 {[%clk 0:02:47]}  a6 {[%clk 0:02:30]} 14. a4 {[%clk 0:02:46]}  Bd7 {[%clk 0:02:30]} 15. Nf2 {[%clk 0:02:42]}  b5 {[%clk 0:02:17]} 16. f4 {[%clk 0:02:38]}  Nc4 {[%clk 0:02:15]} 17. Bxc4 {[%clk 0:02:34]}  bxc4 {[%clk 0:02:16]} 18. e5 {[%clk 0:02:17]}  Nh5 {[%clk 0:02:08]} 19. Nfe4 {[%clk 0:01:55]}  dxe5 {[%clk 0:01:53]} 20. f5 {[%clk 0:01:26]}  Nf4 {[%clk 0:01:47]} 21. f6 {[%clk 0:01:17]}  Bh6 {[%clk 0:01:42]} 22. Bxc5 {[%clk 0:01:16]}  Nd3 {[%clk 0:01:22]} 23. Bxf8 {[%clk 0:01:05]}  Qxf8 {[%clk 0:01:21]} 24. b3 {[%clk 0:00:46]}  Qb4 {[%clk 0:01:20]} 25. bxc4 {[%clk 0:00:43]}  Qxc4 {[%clk 0:01:21]} 26. Rb1 {[%clk 0:00:32]}  Qd4+ {[%clk 0:01:07]} 27. Kh1 {[%clk 0:00:31]}  h3 {[%clk 0:01:08]} 28. Qf3 {[%clk 0:00:26]}  hxg2+ {[%clk 0:01:01]} 29. Qxg2 {[%clk 0:00:26]}  Nf4 {[%clk 0:01:01]} 30. Qf2 {[%clk 0:00:22]}  Bf5 {[%clk 0:00:59]} 31. Qxd4 {[%clk 0:00:02]}  exd4 {[%clk 0:00:59]} 32. Ng3 {[%clk 0:00:02]}  Bxb1 {[%clk 0:00:50]} 33. Nxb1 {[%clk 0:00:01]}  Nxd5 {[%clk 0:00:51]} 0-1


[Site "https://www.chess.com"]

[Event "Titled Tuesday Blitz April 18 Early 2023"]
[White "Lewtak, Damian"]
[Black "Rios Escobar, Adan"]
[WhiteFideId "1141724"]
[BlackFideId "3403645"]
[WhiteElo "2302"]
[BlackElo "2437"]
[Result "0-1"]
[Round "03"]
[TimeControl "180+2"]
[Date "2023.04.18"]
[WhiteClock "0:01:58"]
[BlackClock "0:01:43"]

1. e4 {[%clk 0:03:00]}  c5 {[%clk 0:02:58]} 2. Nf3 {[%clk 0:03:01]}  d6 {[%clk 0:02:57]} 3. Bb5+ {[%clk 0:03:00]}  Nd7 {[%clk 0:02:56]} 4. O-O {[%clk 0:03:00]}  a6 {[%clk 0:02:53]} 5. Bd3 {[%clk 0:03:00]}  Ngf6 {[%clk 0:02:53]} 6. Qe2 {[%clk 0:03:00]}  g6 {[%clk 0:02:52]} 7. c3 {[%clk 0:03:00]}  b5 {[%clk 0:02:49]} 8. a4 {[%clk 0:02:59]}  Bb7 {[%clk 0:02:41]} 9. Bc2 {[%clk 0:02:56]}  c4 {[%clk 0:02:37]} 10. d4 {[%clk 0:02:53]}  cxd3 {[%clk 0:02:37]} 11. Bxd3 {[%clk 0:02:54]}  Bg7 {[%clk 0:02:36]} 12. axb5 {[%clk 0:02:53]}  axb5 {[%clk 0:02:35]} 13. Rxa8 {[%clk 0:02:53]}  Qxa8 {[%clk 0:02:35]} 14. Bxb5 {[%clk 0:02:54]}  Bxe4 {[%clk 0:02:31]} 15. Re1 {[%clk 0:02:50]}  O-O {[%clk 0:02:16]} 16. Bxd7 {[%clk 0:02:49]}  Bxb1 {[%clk 0:02:15]} 17. Qxe7 {[%clk 0:02:32]}  Be4 {[%clk 0:02:05]} 18. Bh3 {[%clk 0:02:14]}  Bxf3 {[%clk 0:01:55]} 19. gxf3 {[%clk 0:02:14]}  Re8 {[%clk 0:01:55]} 20. Bg5 {[%clk 0:01:59]}  Rxe7 {[%clk 0:01:52]} 21. Rxe7 {[%clk 0:01:58]}  Qxf3 {[%clk 0:01:43]} 0-1


[Site "https://www.chess.com"]

[Event "Titled Tuesday Blitz April 18 Early 2023"]
[White "Garakov, Mikhael"]
[Black "Lamaze, Simon"]
[WhiteFideId "4169034"]
[BlackFideId "36069264"]
[WhiteElo "2347"]
[BlackElo "2272"]
[Result "1/2-1/2"]
[Round "03"]
[TimeControl "180+2"]
[Date "2023.04.18"]
[WhiteClock "0:00:04"]
[BlackClock "0:00:36"]

1. e4 {[%clk 0:03:00]}  c5 {[%clk 0:02:59]} 2. Nf3 {[%clk 0:03:00]}  e6 {[%clk 0:02:59]} 3. c4 {[%clk 0:03:00]}  Nc6 {[%clk 0:02:58]} 4. Nc3 {[%clk 0:03:00]}  e5 {[%clk 0:02:58]} 5. Be2 {[%clk 0:03:00]}  d6 {[%clk 0:02:58]} 6. O-O {[%clk 0:03:00]}  f5 {[%clk 0:02:56]} 7. exf5 {[%clk 0:02:46]}  Bxf5 {[%clk 0:02:57]} 8. Nd5 {[%clk 0:02:38]}  Nf6 {[%clk 0:02:55]} 9. Nh4 {[%clk 0:02:25]}  Be6 {[%clk 0:02:55]} 10. Ne3 {[%clk 0:02:17]}  Nd4 {[%clk 0:02:54]} 11. f4 {[%clk 0:01:56]}  exf4 {[%clk 0:02:48]} 12. Rxf4 {[%clk 0:01:54]}  Nxe2+ {[%clk 0:02:46]} 13. Qxe2 {[%clk 0:01:53]}  g5 {[%clk 0:02:46]} 14. Nd5 {[%clk 0:00:21]}  Nxd5 {[%clk 0:02:43]} 15. Qxe6+ {[%clk 0:00:16]}  Qe7 {[%clk 0:02:42]} 16. Re4 {[%clk 0:00:17]}  Qxe6 {[%clk 0:02:38]} 17. Rxe6+ {[%clk 0:00:18]}  Ne7 {[%clk 0:02:37]} 18. Nf3 {[%clk 0:00:12]}  Kd7 {[%clk 0:02:36]} 19. Re4 {[%clk 0:00:10]}  h6 {[%clk 0:02:36]} 20. d3 {[%clk 0:00:10]}  Bg7 {[%clk 0:02:36]} 21. Bd2 {[%clk 0:00:09]}  d5 {[%clk 0:02:33]} 22. cxd5 {[%clk 0:00:08]}  Nxd5 {[%clk 0:02:34]} 23. Rc1 {[%clk 0:00:07]}  b6 {[%clk 0:02:34]} 24. Ne5+ {[%clk 0:00:08]}  Bxe5 {[%clk 0:02:34]} 25. Rxe5 {[%clk 0:00:08]}  Kd6 {[%clk 0:02:34]} 26. Rce1 {[%clk 0:00:08]}  Nc7 {[%clk 0:02:32]} 27. d4 {[%clk 0:00:08]}  cxd4 {[%clk 0:02:28]} 28. Bb4+ {[%clk 0:00:08]}  Kd7 {[%clk 0:02:21]} 29. Re7+ {[%clk 0:00:08]}  Kd8 {[%clk 0:02:21]} 30. Rd1 {[%clk 0:00:06]}  Nb5 {[%clk 0:02:09]} 31. a4 {[%clk 0:00:06]}  a5 {[%clk 0:02:10]} 32. axb5 {[%clk 0:00:06]}  axb4 {[%clk 0:02:10]} 33. Rg7 {[%clk 0:00:05]}  Rf8 {[%clk 0:01:48]} 34. Rxd4+ {[%clk 0:00:05]}  Kc8 {[%clk 0:01:48]} 35. h4 {[%clk 0:00:05]}  Ra1+ {[%clk 0:01:33]} 36. Kh2 {[%clk 0:00:05]}  Rc1 {[%clk 0:01:25]} 37. Rxb4 {[%clk 0:00:05]}  Rc7 {[%clk 0:01:24]} 38. Rxc7+ {[%clk 0:00:04]}  Kxc7 {[%clk 0:01:25]} 39. hxg5 {[%clk 0:00:05]}  hxg5 {[%clk 0:01:26]} 40. Rc4+ {[%clk 0:00:05]}  Kb7 {[%clk 0:01:26]} 41. Kg3 {[%clk 0:00:03]}  Rf5 {[%clk 0:01:26]} 42. Rb4 {[%clk 0:00:04]}  Rc5 {[%clk 0:01:24]} 43. Kg4 {[%clk 0:00:04]}  Kc7 {[%clk 0:01:25]} 44. Kh5 {[%clk 0:00:05]}  Kd6 {[%clk 0:01:24]} 45. g4 {[%clk 0:00:05]}  Rd5 {[%clk 0:01:21]} 46. Re4 {[%clk 0:00:05]}  Rxb5 {[%clk 0:01:21]} 47. b4 {[%clk 0:00:05]}  Rd5 {[%clk 0:01:13]} 48. Re8 {[%clk 0:00:04]}  Rb5 {[%clk 0:01:09]} 49. Rg8 {[%clk 0:00:04]}  Ke6 {[%clk 0:01:07]} 50. Rxg5 {[%clk 0:00:03]}  Rxb4 {[%clk 0:01:08]} 51. Kg6 {[%clk 0:00:02]}  Rf4 {[%clk 0:01:05]} 52. Kh5 {[%clk 0:00:02]}  Rb4 {[%clk 0:01:00]} 53. Rg8 {[%clk 0:00:03]}  Kf7 {[%clk 0:01:00]} 54. Rb8 {[%clk 0:00:02]}  b5 {[%clk 0:00:53]} 55. g5 {[%clk 0:00:03]}  Rb1 {[%clk 0:00:46]} 56. g6+ {[%clk 0:00:03]}  Kf6 {[%clk 0:00:45]} 57. Rb6+ {[%clk 0:00:03]}  Kf5 {[%clk 0:00:45]} 58. Kh6 {[%clk 0:00:03]}  b4 {[%clk 0:00:42]} 59. Kg7 {[%clk 0:00:02]}  Rg1 {[%clk 0:00:42]} 60. Kf7 {[%clk 0:00:02]}  Ra1 {[%clk 0:00:35]} 61. g7 {[%clk 0:00:02]}  Ra7+ {[%clk 0:00:35]} 62. Kf8 {[%clk 0:00:03]}  Ra8+ {[%clk 0:00:35]} 63. Kf7 {[%clk 0:00:03]}  Ra7+ {[%clk 0:00:36]} 64. Kf8 {[%clk 0:00:03]}  Ra8+ {[%clk 0:00:35]} 65. Kf7 {[%clk 0:00:04]}  Ra7+ {[%clk 0:00:36]} 1/2-1/2


[Site "https://www.chess.com"]

[Event "Titled Tuesday Blitz April 18 Early 2023"]
[White "Harriott, Tyrell"]
[Black "Berezin, Viktor"]
[WhiteFideId "2086484"]
[BlackFideId "14107872"]
[WhiteElo "2107"]
[BlackElo "2310"]
[Result "0-1"]
[Round "03"]
[TimeControl "180+2"]
[Date "2023.04.18"]
[WhiteClock "0:00:25"]
[BlackClock "0:00:06"]

1. d4 {[%clk 0:03:00]}  Nf6 {[%clk 0:02:57]} 2. e3 {[%clk 0:03:01]}  g6 {[%clk 0:02:55]} 3. Bd3 {[%clk 0:03:01]}  Bg7 {[%clk 0:02:56]} 4. f4 {[%clk 0:03:01]}  O-O {[%clk 0:02:56]} 5. Nf3 {[%clk 0:03:01]}  d6 {[%clk 0:02:57]} 6. O-O {[%clk 0:03:01]}  c5 {[%clk 0:02:57]} 7. c3 {[%clk 0:03:01]}  b6 {[%clk 0:02:57]} 8. Nbd2 {[%clk 0:03:01]}  Bb7 {[%clk 0:02:58]} 9. f5 {[%clk 0:03:00]}  Nbd7 {[%clk 0:02:38]} 10. Qe1 {[%clk 0:02:58]}  e5 {[%clk 0:02:34]} 11. fxg6 {[%clk 0:02:55]}  hxg6 {[%clk 0:02:33]} 12. Ng5 {[%clk 0:02:55]}  d5 {[%clk 0:02:21]} 13. Qh4 {[%clk 0:02:53]}  e4 {[%clk 0:02:19]} 14. Bb5 {[%clk 0:02:52]}  Nh5 {[%clk 0:01:38]} 15. Bxd7 {[%clk 0:02:34]}  Qxd7 {[%clk 0:01:39]} 16. g4 {[%clk 0:02:34]}  f6 {[%clk 0:01:32]} 17. Nh3 {[%clk 0:02:33]}  Bc8 {[%clk 0:01:27]} 18. Nf2 {[%clk 0:02:29]}  Nf4 {[%clk 0:01:18]} 19. exf4 {[%clk 0:02:27]}  e3 {[%clk 0:01:18]} 20. h3 {[%clk 0:02:22]}  cxd4 {[%clk 0:01:15]} 21. cxd4 {[%clk 0:02:21]}  f5 {[%clk 0:01:15]} 22. Nf3 {[%clk 0:02:10]}  exf2+ {[%clk 0:01:14]} 23. Qxf2 {[%clk 0:02:03]}  fxg4 {[%clk 0:01:14]} 24. Ne5 {[%clk 0:02:03]}  Bxe5 {[%clk 0:01:12]} 25. dxe5 {[%clk 0:02:02]}  gxh3 {[%clk 0:01:12]} 26. Kh2 {[%clk 0:02:00]}  Qf7 {[%clk 0:01:01]} 27. Rg1 {[%clk 0:01:57]}  Bf5 {[%clk 0:01:01]} 28. Be3 {[%clk 0:01:53]}  Rac8 {[%clk 0:01:01]} 29. Rac1 {[%clk 0:01:49]}  Kg7 {[%clk 0:00:47]} 30. Bd4 {[%clk 0:01:38]}  Qe6 {[%clk 0:00:47]} 31. Qh4 {[%clk 0:01:32]}  Rc4 {[%clk 0:00:32]} 32. Rxc4 {[%clk 0:01:24]}  dxc4 {[%clk 0:00:33]} 33. Bc3 {[%clk 0:01:22]}  Kg8 {[%clk 0:00:19]} 34. Rd1 {[%clk 0:01:20]}  Qc6 {[%clk 0:00:15]} 35. Rd2 {[%clk 0:01:15]}  Qf3 {[%clk 0:00:14]} 36. Rf2 {[%clk 0:01:13]}  Qe3 {[%clk 0:00:12]} 37. e6 {[%clk 0:01:10]}  Qxe6 {[%clk 0:00:12]} 38. Qh6 {[%clk 0:01:02]}  Kf7 {[%clk 0:00:10]} 39. Rd2 {[%clk 0:00:55]}  Bd3 {[%clk 0:00:09]} 40. Rf2 {[%clk 0:00:48]}  Ke8 {[%clk 0:00:09]} 41. Qg7 {[%clk 0:00:46]}  Rf7 {[%clk 0:00:08]} 42. Qg8+ {[%clk 0:00:46]}  Kd7 {[%clk 0:00:08]} 43. Be5 {[%clk 0:00:45]}  Kc6 {[%clk 0:00:08]} 44. Qb8 {[%clk 0:00:45]}  Kb5 {[%clk 0:00:07]} 45. Qd8 {[%clk 0:00:43]}  Rd7 {[%clk 0:00:07]} 46. Qh8 {[%clk 0:00:39]}  Qd5 {[%clk 0:00:08]} 47. Qh4 {[%clk 0:00:39]}  Be4 {[%clk 0:00:08]} 48. Qg3 {[%clk 0:00:39]}  Qd1 {[%clk 0:00:07]} 49. Kxh3 {[%clk 0:00:36]}  Qh1+ {[%clk 0:00:07]} 50. Kg4 {[%clk 0:00:37]}  Bf5+ {[%clk 0:00:07]} 51. Kg5 {[%clk 0:00:36]}  Rf7 {[%clk 0:00:06]} 52. Rh2 {[%clk 0:00:33]}  Qd1 {[%clk 0:00:05]} 53. Bc3 {[%clk 0:00:31]}  Qd8+ {[%clk 0:00:05]} 54. Kh6 {[%clk 0:00:29]}  Rf8 {[%clk 0:00:04]} 55. Kh7 {[%clk 0:00:25]}  Rf7+ {[%clk 0:00:05]} 56. Kh6 {[%clk 0:00:25]}  Qf8+ {[%clk 0:00:05]} 57. Kg5 {[%clk 0:00:25]}  Qe7+ {[%clk 0:00:06]} 58. Kh6 {[%clk 0:00:25]}  Rh7# {[%clk 0:00:06]} 0-1


[Site "https://www.chess.com"]

[Event "Titled Tuesday Blitz April 18 Early 2023"]
[White "Sokolovsky, Yahli"]
[Black "Pein, Jonathan"]
[WhiteFideId "2820242"]
[BlackFideId "417092"]
[WhiteElo "2316"]
[BlackElo "2151"]
[Result "0-1"]
[Round "03"]
[TimeControl "180+2"]
[Date "2023.04.18"]
[WhiteClock "0:00:07"]
[BlackClock "0:00:08"]

1. b3 {[%clk 0:03:00]}  b6 {[%clk 0:02:55]} 2. Bb2 {[%clk 0:03:01]}  Bb7 {[%clk 0:02:56]} 3. e3 {[%clk 0:03:01]}  d5 {[%clk 0:02:56]} 4. Nf3 {[%clk 0:03:02]}  Nc6 {[%clk 0:02:57]} 5. d4 {[%clk 0:03:02]}  e6 {[%clk 0:02:57]} 6. a3 {[%clk 0:02:57]}  Qd7 {[%clk 0:02:57]} 7. Bd3 {[%clk 0:02:57]}  O-O-O {[%clk 0:02:55]} 8. c4 {[%clk 0:02:38]}  Be7 {[%clk 0:02:43]} 9. Qc2 {[%clk 0:01:57]}  Kb8 {[%clk 0:02:35]} 10. c5 {[%clk 0:01:50]}  Bf6 {[%clk 0:02:26]} 11. b4 {[%clk 0:01:48]}  Nce7 {[%clk 0:02:05]} 12. O-O {[%clk 0:01:33]}  g5 {[%clk 0:02:04]} 13. b5 {[%clk 0:01:32]}  bxc5 {[%clk 0:02:01]} 14. dxc5 {[%clk 0:01:31]}  c6 {[%clk 0:01:55]} 15. Bxf6 {[%clk 0:00:50]}  Nxf6 {[%clk 0:01:56]} 16. Ne5 {[%clk 0:00:51]}  Qc7 {[%clk 0:01:54]} 17. Nxf7 {[%clk 0:00:47]}  Ng4 {[%clk 0:01:52]} 18. g3 {[%clk 0:00:47]}  cxb5 {[%clk 0:01:41]} 19. Nd2 {[%clk 0:00:42]}  h5 {[%clk 0:01:41]} 20. Nxd8 {[%clk 0:00:33]}  Rxd8 {[%clk 0:01:31]} 21. Bxb5 {[%clk 0:00:34]}  h4 {[%clk 0:01:26]} 22. c6 {[%clk 0:00:34]}  hxg3 {[%clk 0:01:17]} 23. hxg3 {[%clk 0:00:34]}  Nf5 {[%clk 0:01:15]} 24. Nf3 {[%clk 0:00:21]}  Rh8 {[%clk 0:00:48]} 25. Qe2 {[%clk 0:00:11]}  Qh7 {[%clk 0:00:45]} 26. Nh4 {[%clk 0:00:09]}  Nxh4 {[%clk 0:00:17]} 27. Qxg4 {[%clk 0:00:09]}  Ng6 {[%clk 0:00:17]} 28. c7+ {[%clk 0:00:10]}  Ka8 {[%clk 0:00:17]} 29. c8=Q+ {[%clk 0:00:10]}  Bxc8 {[%clk 0:00:16]} 30. Bc6+ {[%clk 0:00:10]}  Bb7 {[%clk 0:00:17]} 31. Bxb7+ {[%clk 0:00:10]}  Kb8 {[%clk 0:00:17]} 32. Kg2 {[%clk 0:00:02]}  Qh2+ {[%clk 0:00:16]} 33. Kf3 {[%clk 0:00:03]}  Ne5+ {[%clk 0:00:16]} 34. Ke2 {[%clk 0:00:04]}  Nxg4 {[%clk 0:00:17]} 35. Rab1 {[%clk 0:00:04]}  Ne5 {[%clk 0:00:06]} 36. Bxd5+ {[%clk 0:00:04]}  Kc7 {[%clk 0:00:07]} 37. Bxe6 {[%clk 0:00:03]}  Qh5+ {[%clk 0:00:07]} 38. g4 {[%clk 0:00:03]}  Nxg4 {[%clk 0:00:07]} 39. Rh1 {[%clk 0:00:02]}  Nh2+ {[%clk 0:00:06]} 40. Kd2 {[%clk 0:00:02]}  Rd8+ {[%clk 0:00:06]} 41. Kc2 {[%clk 0:00:02]}  Qe2+ {[%clk 0:00:06]} 42. Kb3 {[%clk 0:00:02]}  Rb8+ {[%clk 0:00:06]} 43. Kc3 {[%clk 0:00:01]}  Rxb1 {[%clk 0:00:05]} 44. Rxb1 {[%clk 0:00:02]}  Nf3 {[%clk 0:00:05]} 45. Bb3 {[%clk 0:00:02]}  Qd2+ {[%clk 0:00:05]} 46. Kc4 {[%clk 0:00:02]}  Ne5+ {[%clk 0:00:05]} 47. Kc5 {[%clk 0:00:01]}  Qd6+ {[%clk 0:00:05]} 48. Kb5 {[%clk 0:00:01]}  a6+ {[%clk 0:00:06]} 49. Ka5 {[%clk 0:00:01]}  Nc6+ {[%clk 0:00:04]} 50. Kxa6 {[%clk 0:00:01]}  Nd4+ {[%clk 0:00:05]} 51. Ka5 {[%clk 0:00:01]}  Qxa3+ {[%clk 0:00:05]} 52. Ba4 {[%clk 0:00:01]}  Nc6+ {[%clk 0:00:05]} 53. Kb5 {[%clk 0:00:01]}  Qd3+ {[%clk 0:00:04]} 54. Kc5 {[%clk 0:00:02]}  Qxb1 {[%clk 0:00:03]} 55. Bxc6 {[%clk 0:00:02]}  Qc1+ {[%clk 0:00:04]} 56. Kd4 {[%clk 0:00:03]}  Qxc6 {[%clk 0:00:05]} 57. Ke5 {[%clk 0:00:03]}  Qf3 {[%clk 0:00:05]} 58. e4 {[%clk 0:00:04]}  Qxf2 {[%clk 0:00:06]} 59. Kd5 {[%clk 0:00:05]}  g4 {[%clk 0:00:06]} 60. e5 {[%clk 0:00:06]}  g3 {[%clk 0:00:07]} 61. e6 {[%clk 0:00:06]}  Qf5+ {[%clk 0:00:07]} 62. Kd4 {[%clk 0:00:07]}  Qxe6 {[%clk 0:00:08]} 0-1


[Site "https://www.chess.com"]

[Event "Titled Tuesday Blitz April 18 Early 2023"]
[White "Munkhgal, Gombosuren"]
[Black "krucki03"]
[WhiteFideId "4901266"]
[WhiteElo "2528"]
[BlackElo "2417"]
[Result "1-0"]
[Round "03"]
[TimeControl "180+2"]
[Date "2023.04.18"]
[WhiteClock "0:00:04"]
[BlackClock "0:00:03"]

1. d4 {[%clk 0:03:00]}  Nf6 {[%clk 0:02:59]} 2. Bf4 {[%clk 0:02:59]}  c5 {[%clk 0:02:56]} 3. d5 {[%clk 0:02:58]}  b5 {[%clk 0:02:53]} 4. a4 {[%clk 0:02:49]}  b4 {[%clk 0:02:50]} 5. c4 {[%clk 0:02:46]}  g6 {[%clk 0:02:45]} 6. Be5 {[%clk 0:02:40]}  Bg7 {[%clk 0:02:43]} 7. b3 {[%clk 0:02:40]}  d6 {[%clk 0:02:39]} 8. Bb2 {[%clk 0:02:40]}  O-O {[%clk 0:02:38]} 9. Nd2 {[%clk 0:02:40]}  Bf5 {[%clk 0:02:35]} 10. f3 {[%clk 0:02:34]}  e5 {[%clk 0:02:28]} 11. e4 {[%clk 0:02:34]}  Bc8 {[%clk 0:02:27]} 12. a5 {[%clk 0:02:34]}  Nh5 {[%clk 0:02:23]} 13. g3 {[%clk 0:02:33]}  f5 {[%clk 0:02:22]} 14. Bg2 {[%clk 0:02:31]}  Bh6 {[%clk 0:02:19]} 15. Ne2 {[%clk 0:02:28]}  f4 {[%clk 0:02:07]} 16. O-O {[%clk 0:02:26]}  fxg3 {[%clk 0:02:02]} 17. hxg3 {[%clk 0:02:26]}  Be3+ {[%clk 0:02:01]} 18. Rf2 {[%clk 0:02:20]}  Qg5 {[%clk 0:01:56]} 19. Nf1 {[%clk 0:02:14]}  Bxf2+ {[%clk 0:01:54]} 20. Kxf2 {[%clk 0:02:13]}  Nd7 {[%clk 0:01:50]} 21. Bc1 {[%clk 0:02:14]}  Qe7 {[%clk 0:01:48]} 22. g4 {[%clk 0:02:08]}  Nf4 {[%clk 0:01:44]} 23. Nxf4 {[%clk 0:02:09]}  exf4 {[%clk 0:01:43]} 24. Bb2 {[%clk 0:02:09]}  Ne5 {[%clk 0:01:41]} 25. a6 {[%clk 0:02:04]}  Qh4+ {[%clk 0:01:35]} 26. Kg1 {[%clk 0:02:00]}  Re8 {[%clk 0:01:27]} 27. Qd2 {[%clk 0:01:50]}  Qg5 {[%clk 0:01:26]} 28. Ng3 {[%clk 0:01:38]}  Bd7 {[%clk 0:01:25]} 29. Ne2 {[%clk 0:01:38]}  Rf8 {[%clk 0:01:25]} 30. Kf2 {[%clk 0:01:33]}  Rae8 {[%clk 0:01:24]} 31. Rh1 {[%clk 0:01:32]}  Bxg4 {[%clk 0:01:23]} 32. fxg4 {[%clk 0:01:30]}  Nxg4+ {[%clk 0:01:24]} 33. Ke1 {[%clk 0:01:28]}  Ne5 {[%clk 0:01:00]} 34. Bxe5 {[%clk 0:01:26]}  Rxe5 {[%clk 0:01:00]} 35. Bf3 {[%clk 0:01:25]}  Qf6 {[%clk 0:00:51]} 36. Kf2 {[%clk 0:01:23]}  g5 {[%clk 0:00:51]} 37. Qe1 {[%clk 0:01:21]}  g4 {[%clk 0:00:47]} 38. Bxg4 {[%clk 0:01:15]}  Rxe4 {[%clk 0:00:47]} 39. Be6+ {[%clk 0:01:12]}  Kh8 {[%clk 0:00:45]} 40. Qa1 {[%clk 0:01:03]}  Re5 {[%clk 0:00:36]} 41. Qb1 {[%clk 0:00:59]}  h5 {[%clk 0:00:30]} 42. Qg1 {[%clk 0:00:41]}  Rg5 {[%clk 0:00:30]} 43. Qa1 {[%clk 0:00:37]}  Re5 {[%clk 0:00:30]} 44. Bg4 {[%clk 0:00:28]}  Kg7 {[%clk 0:00:15]} 45. Bf3 {[%clk 0:00:27]}  Rh8 {[%clk 0:00:14]} 46. Rg1+ {[%clk 0:00:26]}  Kf8 {[%clk 0:00:15]} 47. Qa5 {[%clk 0:00:23]}  Qh4+ {[%clk 0:00:11]} 48. Kf1 {[%clk 0:00:23]}  Qh3+ {[%clk 0:00:10]} 49. Bg2 {[%clk 0:00:24]}  Qd3 {[%clk 0:00:08]} 50. Qd8+ {[%clk 0:00:24]}  Kf7 {[%clk 0:00:08]} 51. Qd7+ {[%clk 0:00:24]}  Re7 {[%clk 0:00:09]} 52. Qe6+ {[%clk 0:00:06]}  Rxe6 {[%clk 0:00:09]} 53. dxe6+ {[%clk 0:00:07]}  Ke7 {[%clk 0:00:06]} 54. Bd5 {[%clk 0:00:02]}  f3 {[%clk 0:00:05]} 55. Rg7+ {[%clk 0:00:03]}  Kf6 {[%clk 0:00:05]} 56. Rf7+ {[%clk 0:00:03]}  Ke5 {[%clk 0:00:06]} 57. Rxf3 {[%clk 0:00:04]}  Qd1+ {[%clk 0:00:06]} 58. Kf2 {[%clk 0:00:04]}  h4 {[%clk 0:00:05]} 59. e7 {[%clk 0:00:04]}  Re8 {[%clk 0:00:05]} 60. Re3+ {[%clk 0:00:04]}  Kf6 {[%clk 0:00:04]} 61. Re6+ {[%clk 0:00:05]}  Kg7 {[%clk 0:00:04]} 62. Nf4 {[%clk 0:00:05]}  Qa1 {[%clk 0:00:03]} 63. Nh5+ {[%clk 0:00:04]}  Kh8 {[%clk 0:00:03]} 64. Rh6# {[%clk 0:00:04]} 1-0


[Site "https://www.chess.com"]